bitfinex/quotes_SOLUSD_20250528
["timestamp","ask_amount","ask_price","bid_price","bid_amount"]
[1748425069263,20.20785218,173.2,173.18,16.48501568]
[1748425070070,20.20785218,173.2,173.17,16.48501568]
[1748425070787,5.77100646,173.28,173.24,18.64964886]
[1748425070993,9.66,173.34,173.27,16.48501568]
[1748425070994,14.42487805,173.32,173.27,16.48501568]
[1748425071277,5.76934171,173.33,173.29,16.48501568]
[1748425071481,16.48501568,173.3,173.27,6.3907]
[1748425071682,16.48501568,173.29,173.26,1.6431]
[1748425071977,20.192696,173.33,173.26,1.6431]
[1748425071978,16.48501568,173.3,173.26,1.6431]
[1748425072356,52.66501568,173.31,173.26,18.12811568]
[1748425073050,5.77034045,173.3,173.26,18.12811568]
[1748425073255,5.77034045,173.3,173.27,16.48501568]
[1748425073677,16.48501568,173.28,173.22,6.3907]
[1748425073877,16.48501568,173.27,173.22,6.3907]
[1748425074053,49.04789382,173.3,173.23,16.48501568]
[1748425074372,56.39619157,173.3,173.26,16.48501568]
[1748425074556,72.88120725,173.3,173.25,16.48501568]
[1748425074746,16.48501568,173.28,173.22,32.3907]
[1748425074949,16.48501568,173.27,173.22,48.87571568]
[1748425075173,20.2008542,173.26,173.22,48.87571568]
[1748425075561,20.2008542,173.26,173.22,22.87571568]
[1748425076476,20.2008542,173.26,173.24,16.48501568]
[1748425076777,20.2008542,173.26,173.25,16.48501568]
[1748425077375,14.42918157,173.26,173.25,16.48501568]
[1748425077552,14.42918157,173.26,173.24,16.48501568]
[1748425079481,5.77100646,173.28,173.25,16.48501568]
[1748425079688,5.77100646,173.28,173.22,32.3907]
[1748425079689,5.77100646,173.28,173.26,16.48501568]
[1748425079895,16.48501568,173.27,173.21,1.632]
[1748425080069,16.48501568,173.24,173.21,1.632]
[1748425080395,5.77233895,173.24,173.23,16.48501568]
[1748425081962,5.77233895,173.24,173.21,18.11701568]
[1748425082583,20.20280244,173.25,173.21,18.11701568]
[1748425083254,20.20280244,173.25,173.22,16.48501568]
[1748425083657,36.68781812,173.25,173.21,1.632]
[1748425083856,36.68781812,173.25,173.21,18.11701568]
[1748425084074,20.20280244,173.25,173.21,18.11701568]
[1748425085161,20.20280244,173.25,173.24,16.48501568]
[1748425085162,5.77200577,173.25,173.24,16.48501568]
[1748425085455,5.77200577,173.25,173.23,16.48501568]
[1748425086083,5.77200577,173.25,173.22,16.48501568]
[1748425088687,16.48501568,173.24,173.21,1.632]
[1748425088887,16.48501568,173.24,173.19,42.48501568]
[1748425089087,16.48501568,173.24,173.2,16.48501568]
[1748425089888,16.48501568,173.24,173.17,24.92204886]
[1748425089889,16.48501568,173.21,173.17,6.2724]
[1748425090665,5.77367205,173.2,173.18,16.48501568]
[1748425090966,20.20785218,173.2,173.17,16.48501568]
[1748425092706,5.80413504,173.31,173.19,16.48501568]
[1748425093015,34.6220427,173.3,173.24,16.48501568]
[1748425093290,34.6220427,173.3,173.2,25.27454886]
[1748425093291,16.48501568,173.27,173.2,25.27454886]
[1748425093490,16.48501568,173.26,173.21,16.48501568]
[1748425093991,16.48501568,173.26,173.22,16.48501568]
[1748425094484,16.48501568,173.27,173.22,16.48501568]
[1748425094788,36.68586988,173.26,173.21,16.48501568]
[1748425095269,36.68586988,173.26,173.22,16.48501568]
[1748425096697,20.2008542,173.26,173.23,16.48501568]
[1748425096991,5.77167263,173.26,173.25,16.48501568]
[1748425097802,5.77100646,173.28,173.25,16.48501568]
[1748425097973,5.77100646,173.28,173.27,16.48501568]
[1748425098567,5.77034045,173.3,173.27,16.48501568]
[1748425098886,20.19448221,173.32,173.29,16.48501568]
[1748425099093,20.19448221,173.32,173.3,16.48501568]
[1748425101694,20.19448221,173.32,173.29,16.48501568]
[1748425102193,20.19448221,173.32,173.3,16.48501568]
[1748425103493,5.76967459,173.32,173.31,16.48501568]
[1748425105609,14.4223159,173.35,173.31,16.48501568]
[1748425105808,14.4223159,173.35,173.32,16.48501568]
[1748425106511,14.4223159,173.35,173.31,16.48501568]
[1748425106726,16.48501568,173.34,173.27,6.5928]
[1748425106907,16.48501568,173.34,173.29,16.48501568]
[1748425107226,30.8164315,173.35,173.3,16.48501568]
[1748425107787,36.58510758,173.35,173.3,16.48501568]
[1748425108220,20.1000919,173.35,173.34,16.48501568]
[1748425108510,5.76867608,173.35,173.34,16.48501568]
[1748425109635,5.76801061,173.37,173.34,16.48501568]
[1748425109793,5.76801061,173.37,173.31,20.31254886]
[1748425109994,5.76801061,173.37,173.36,16.48501568]
[1748425110416,5.76801061,173.37,173.32,18.64964886]
[1748425110729,5.76801061,173.37,173.36,16.48501568]
[1748425110895,14.41706131,173.41,173.36,41.37596454]
[1748425111095,5.76634759,173.42,173.4,16.48501568]
[1748425111298,20.18221657,173.42,173.4,16.48501568]
[1748425111596,20.18221657,173.42,173.36,6.2413]
[1748425111788,20.18221657,173.42,173.41,16.48501568]
[1748425112597,20.18221657,173.42,173.39,1.5333]
[1748425112598,20.18221657,173.42,173.4,16.48501568]
[1748425113013,20.18221657,173.42,173.41,16.48501568]
[1748425115912,14.41420664,173.44,173.42,16.48501568]
[1748425117821,14.41420664,173.44,173.41,16.48501568]
[1748425118125,14.41420664,173.44,173.43,16.48501568]
[1748425119211,20.17639937,173.47,173.43,16.48501568]
[1748425119415,20.17639937,173.47,173.45,16.48501568]
[1748425119619,20.17639937,173.47,173.46,16.48501568]
[1748425119825,5.76468553,173.47,173.46,16.48501568]
[1748425120207,5.76468553,173.47,173.44,6.3761]
[1748425120208,5.76468553,173.47,173.44,16.48501568]
[1748425120618,5.76468553,173.47,173.45,16.48501568]
[1748425120812,5.76468553,173.47,173.46,16.48501568]
[1748425121620,14.41134752,173.48,173.46,16.48501568]
[1748425121803,14.41134752,173.48,173.47,16.48501568]
[1748425122003,14.41134752,173.48,173.44,16.48501568]
[1748425122448,14.41134752,173.48,173.4,6.3761]
[1748425122740,30.8963632,173.48,173.44,16.48501568]
[1748425123339,16.48501568,173.47,173.43,16.48501568]
[1748425123508,16.48501568,173.46,173.42,16.48501568]
[1748425123704,5.76535024,173.45,173.42,16.48501568]
[1748425124611,5.76535024,173.45,173.39,1.5333]
[1748425124612,36.66374153,173.45,173.41,16.48501568]
[1748425124817,72.82374153,173.45,173.41,16.48501568]
[1748425126829,56.33872585,173.45,173.42,16.48501568]
[1748425127035,56.33872585,173.45,173.43,16.48501568]
[1748425127613,20.17872585,173.45,173.43,16.48501568]
[1748425127911,14.41337561,173.45,173.43,16.48501568]
[1748425128331,14.41337561,173.45,173.39,1.5333]
[1748425128641,30.89839129,173.45,173.41,16.48501568]
[1748425128806,16.48501568,173.43,173.39,1.5333]
[1748425129011,16.48501568,173.43,173.39,18.01831568]
[1748425130024,16.48501568,173.44,173.39,18.01831568]
[1748425130338,14.41337561,173.45,173.43,16.48501568]
[1748425130643,14.41337561,173.45,173.42,16.48501568]
[1748425132347,20.17872585,173.45,173.42,16.48501568]
[1748425132518,20.17872585,173.45,173.41,16.48501568]
[1748425137341,16.48501568,173.44,173.4,16.48501568]
[1748425137516,20.17872585,173.45,173.42,16.48501568]
[1748425140137,20.17872585,173.45,173.41,16.48501568]
[1748425141015,16.48501568,173.42,173.36,6.3036]
[1748425141212,16.48501568,173.4,173.36,22.78861568]
[1748425141629,20.18570851,173.39,173.36,6.3036]
[1748425141828,20.18570851,173.39,173.35,18.13191568]
[1748425142034,20.18570851,173.39,173.34,16.48501568]
[1748425142035,16.48501568,173.38,173.34,16.48501568]
[1748425142244,16.48501568,173.37,173.33,16.48501568]
[1748425142745,16.48501568,173.38,173.33,16.48501568]
[1748425143315,16.48501568,173.37,173.32,6.4741]
[1748425143516,16.48501568,173.37,173.33,16.48501568]
[1748425143745,16.48501568,173.38,173.33,16.48501568]
[1748425144054,43.25508967,173.39,173.32,6.4741]
[1748425144055,16.48501568,173.37,173.32,22.95911568]
[1748425144637,16.48501568,173.36,173.31,17.99971568]
[1748425144836,43.25508967,173.39,173.31,17.99971568]
[1748425144837,16.48501568,173.35,173.31,17.99971568]
[1748425145035,16.48501568,173.36,173.32,16.48501568]
[1748425145224,16.48501568,173.36,173.31,1.5147]
[1748425145225,16.48501568,173.36,173.31,17.99971568]
[1748425145435,16.48501568,173.35,173.31,17.99971568]
[1748425145642,16.48501568,173.35,173.31,1.5147]
[1748425145945,5.76900888,173.34,173.31,1.5147]
[1748425146525,36.67654677,173.34,173.29,16.48501568]
[1748425146725,16.48501568,173.32,173.28,6.2676]
[1748425146937,16.48501568,173.3,173.27,1.5986]
[1748425147142,16.48501568,173.31,173.27,18.08361568]
[1748425147726,5.77034045,173.3,173.27,18.08361568]
[1748425147926,5.77034045,173.3,173.27,1.5986]
[1748425148428,36.68120725,173.3,173.26,16.48501568]
[1748425148622,36.68120725,173.3,173.23,6.5928]
[1748425148819,16.48501568,173.28,173.24,16.48501568]
[1748425149227,20.19619157,173.3,173.22,16.48501568]
[1748425149228,16.48501568,173.26,173.22,16.48501568]
[1748425149529,16.48501568,173.26,173.21,1.6465]
[1748425149530,16.48501568,173.25,173.21,1.6465]
[1748425149944,5.77210793,173.25,173.22,16.48501568]
[1748425150249,5.77210793,173.25,173.23,16.48501568]
[1748425152155,22.25668831,173.26,173.21,1.6465]
[1748425152460,16.48501568,173.25,173.21,1.6465]
[1748425153225,16.48501568,173.25,173.21,18.13151568]
[1748425153429,5.77167263,173.26,173.23,16.48501568]
[1748425153651,5.77167263,173.26,173.25,16.48501568]
[1748425153851,5.77167263,173.26,173.24,16.48501568]
[1748425154665,5.77133952,173.27,173.24,16.48501568]
[1748425156132,5.77133952,173.27,173.25,16.48501568]
[1748425157236,24.10724732,173.29,173.26,16.48501568]
[1748425157237,15.45077265,173.29,173.26,16.48501568]
[1748425157440,5.77045256,173.3,173.28,16.48501568]
[1748425158370,20.19427487,173.32,173.25,6.248]
[1748425158565,20.19427487,173.32,173.28,16.48501568]
[1748425158763,20.19427487,173.32,173.29,16.48501568]
[1748425159338,20.19427487,173.32,173.28,16.48501568]
[1748425160040,20.19427487,173.32,173.29,16.48501568]
[1748425160440,14.42460028,173.32,173.29,16.48501568]
[1748425162064,20.19427487,173.32,173.29,16.48501568]
[1748425167667,14.42460028,173.32,173.29,16.48501568]
[1748425167873,14.42460028,173.32,173.3,16.48501568]
[1748425168176,14.42460028,173.32,173.28,16.48501568]
[1748425168947,14.42460028,173.32,173.29,16.48501568]
[1748425169472,5.76934171,173.33,173.29,16.48501568]
[1748425169650,5.76934171,173.33,173.31,16.48501568]
[1748425169852,5.76934171,173.33,173.3,16.48501568]
[1748425171673,5.76934171,173.33,173.31,16.48501568]
[1748425171887,5.76934171,173.33,173.32,16.48501568]
[1748425177574,5.76801061,173.37,173.32,16.48501568]
[1748425177772,5.76801061,173.37,173.35,16.48501568]
[1748425178278,5.76801061,173.37,173.36,16.48501568]
[1748425179176,20.18756471,173.38,173.36,16.48501568]
[1748425180263,5.76767793,173.38,173.37,16.48501568]
[1748425181682,5.76767793,173.38,173.36,16.48501568]
[1748425182598,5.76767793,173.38,173.37,16.48501568]
[1748425186769,5.76634759,173.42,173.37,16.48501568]
[1748425186979,5.76634759,173.42,173.41,16.48501568]
[1748425188105,5.76568265,173.44,173.41,16.48501568]
[1748425188401,20.17988929,173.44,173.42,16.48501568]
[1748425189514,20.17988929,173.44,173.43,16.48501568]
[1748425189973,20.17988929,173.44,173.42,16.48501568]
[1748425192273,20.17988929,173.44,173.4,1.5908]
[1748425192482,20.17988929,173.44,173.42,16.48501568]
[1748425196009,65.49331825,173.44,173.35,89.7581]
[1748425196213,65.49331825,173.44,173.39,16.48501568]
[1748425196380,20.18221657,173.42,173.39,16.48501568]
[1748425198188,36.66723225,173.42,173.38,16.48501568]
[1748425198690,36.66723225,173.42,173.35,1.6581]
[1748425198691,36.66723225,173.42,173.37,16.48501568]
[1748425199005,52.20501568,173.41,173.37,16.48501568]
[1748425199810,52.20501568,173.41,173.36,16.48501568]
[1748425200010,16.48501568,173.4,173.35,1.6581]
[1748425200237,16.48501568,173.37,173.3,1.6161]
[1748425200381,35.74,173.36,173.32,16.48501568]
[1748425201122,5.76867608,173.35,173.34,16.48501568]
[1748425201795,5.76867608,173.35,173.33,16.48501568]
[1748425205329,36.67538198,173.35,173.3,18.10111568]
[1748425205669,16.48501568,173.34,173.3,18.10111568]
[1748425206486,16.48501568,173.32,173.28,16.48501568]
[1748425206690,5.7700075,173.31,173.28,16.48501568]
[1748425207927,5.7700075,173.31,173.29,16.48501568]
[1748425208926,14.42486134,173.32,173.29,16.48501568]
[1748425209110,30.90987702,173.32,173.25,7.9631]
[1748425209320,30.90987702,173.32,173.28,16.48501568]
[1748425209533,16.48501568,173.31,173.27,16.48501568]
[1748425210032,61.72,173.3,173.21,18.38242624]
[1748425210251,16.48501568,173.25,173.2,16.48501568]
[1748425210525,52.22501568,173.26,173.21,16.48501568]
[1748425210907,20.2020202,173.25,173.21,16.48501568]
[1748425212019,16.48501568,173.24,173.2,16.48501568]
[1748425212425,36.68703588,173.25,173.2,16.48501568]
[1748425213318,36.68703588,173.25,173.17,1.5897]
[1748425213524,16.48501568,173.24,173.19,16.48501568]
[1748425213723,16.48501568,173.23,173.19,16.48501568]
[1748425213934,16.48501568,173.23,173.17,1.5897]
[1748425214136,16.48501568,173.21,173.17,1.5897]
[1748425214340,16.48501568,173.23,173.18,16.48501568]
[1748425215114,5.77300542,173.22,173.18,16.48501568]
[1748425215535,20.20551898,173.22,173.18,16.48501568]
[1748425216309,5.77300542,173.22,173.19,16.48501568]
[1748425217231,5.77267216,173.23,173.19,16.48501568]
[1748425217428,5.77267216,173.23,173.2,16.48501568]
[1748425217632,5.77167263,173.26,173.22,16.48501568]
[1748425217834,5.77067343,173.29,173.25,16.48501568]
[1748425218020,5.77067343,173.29,173.26,16.48501568]
[1748425219533,5.77067343,173.29,173.24,1.5979]
[1748425219534,16.48501568,173.28,173.24,18.08291568]
[1748425219759,16.48501568,173.27,173.24,1.5979]
[1748425220046,16.48501568,173.28,173.24,1.5979]
[1748425220541,22.2563552,173.27,173.24,1.5979]
[1748425221415,5.77133952,173.27,173.24,1.5979]
[1748425222564,22.2563552,173.27,173.24,1.5979]
[1748425222854,36.68470401,173.27,173.22,16.48501568]
[1748425223860,16.48501568,173.23,173.16,106.09421568]
[1748425224043,16.48501568,173.21,173.17,16.48501568]
[1748425224626,5.77367205,173.2,173.18,16.48501568]
[1748425224854,5.77331601,173.22,173.18,16.48501568]
[1748425225060,5.77331601,173.22,173.19,16.48501568]
[1748425226382,5.77276921,173.23,173.2,16.48501568]
[1748425226562,5.77100646,173.28,173.22,16.48501568]
[1748425226729,41.47100646,173.28,173.25,16.48501568]
[1748425227564,57.95602214,173.28,173.24,16.48501568]
[1748425229048,72.38353829,173.28,173.24,16.48501568]
[1748425230853,36.68353829,173.28,173.24,16.48501568]
[1748425231751,20.19852261,173.28,173.24,16.48501568]
[1748425232055,36.68353829,173.28,173.24,16.48501568]
[1748425232448,20.19852261,173.28,173.25,16.48501568]
[1748425234937,5.77100646,173.28,173.26,16.48501568]
[1748425235633,5.77100646,173.28,173.23,1.5874]
[1748425235634,20.19852261,173.28,173.23,1.5874]
[1748425235831,16.48501568,173.27,173.22,16.48501568]
[1748425236345,5.77167263,173.26,173.22,16.48501568]
[1748425236646,5.77167263,173.26,173.19,89.7317]
[1748425236647,5.77167263,173.26,173.25,16.48501568]
[1748425237961,5.77067343,173.29,173.25,16.48501568]
[1748425238150,5.77067343,173.29,173.28,16.48501568]
[1748425240072,20.19401529,173.32,173.28,16.48501568]
[1748425240239,20.19401529,173.32,173.29,16.48501568]
[1748425244282,20.19401529,173.32,173.28,16.48501568]
[1748425244567,36.67903097,173.32,173.28,16.48501568]
[1748425245271,20.19401529,173.32,173.28,16.48501568]
[1748425250706,20.19401529,173.32,173.24,7.6323]
[1748425250971,20.19401529,173.32,173.29,16.48501568]
[1748425251775,20.19401529,173.32,173.28,16.48501568]
[1748425253251,20.19401529,173.32,173.29,16.48501568]
[1748425254881,20.19401529,173.32,173.28,16.48501568]
[1748425256184,20.19401529,173.32,173.29,16.48501568]
[1748425256687,5.76967459,173.32,173.31,16.48501568]
[1748425257563,5.76900888,173.34,173.31,16.48501568]
[1748425257880,5.76900888,173.34,173.33,16.48501568]
[1748425259471,36.67305282,173.37,173.32,16.48501568]
[1748425259870,16.48501568,173.36,173.32,16.48501568]
[1748425260760,16.48501568,173.35,173.31,18.09441568]
[1748425260961,16.48501568,173.34,173.3,16.48501568]
[1748425261685,5.76934171,173.33,173.29,16.48501568]
[1748425262554,20.192696,173.33,173.29,16.48501568]
[1748425263181,36.67771168,173.33,173.29,16.48501568]
[1748425263792,16.48501568,173.32,173.27,1.6116]
[1748425263970,16.48501568,173.3,173.24,6.1165]
[1748425264283,35.48,173.32,173.27,16.48501568]
[1748425264284,16.48501568,173.31,173.27,16.48501568]
[1748425264485,51.96501568,173.32,173.28,16.48501568]
[1748425264784,35.48,173.32,173.29,16.48501568]
[1748425265482,35.48,173.32,173.28,16.48501568]
[1748425265788,5.7700075,173.31,173.28,16.48501568]
[1748425265989,20.19502625,173.31,173.28,16.48501568]
[1748425266281,36.68004193,173.31,173.26,16.48501568]
[1748425267594,36.68004193,173.31,173.27,16.48501568]
[1748425267966,16.48501568,173.3,173.26,16.48501568]
[1748425268171,16.48501568,173.3,173.25,16.48501568]
[1748425268373,16.48501568,173.3,173.26,16.48501568]
[1748425269486,20.19502625,173.31,173.24,16.48501568]
[1748425269487,16.48501568,173.29,173.24,16.48501568]
[1748425269688,16.48501568,173.29,173.25,16.48501568]
[1748425270072,5.77100646,173.28,173.25,16.48501568]
[1748425270494,20.19852261,173.28,173.25,16.48501568]
[1748425272674,20.19852261,173.28,173.23,1.5543]
[1748425272882,63.87634426,173.27,173.2,6.2942]
[1748425273085,16.48501568,173.24,173.2,22.77921568]
[1748425273594,16.48501568,173.25,173.21,16.48501568]
[1748425274096,61.74,173.27,173.23,16.48501568]
[1748425274318,35.74,173.27,173.24,16.48501568]
[1748425274605,81.70353829,173.28,173.24,16.48501568]
[1748425274812,29.47852261,173.28,173.25,16.48501568]
[1748425275101,29.47852261,173.28,173.24,16.48501568]
[1748425275283,45.96353829,173.28,173.23,16.48501568]
[1748425275608,16.48501568,173.26,173.22,16.48501568]
[1748425275898,16.48501568,173.26,173.21,16.48501568]
[1748425276805,20.2020202,173.25,173.22,16.48501568]
[1748425277477,5.77200577,173.25,173.23,16.48501568]
[1748425277789,5.77200577,173.25,173.24,16.48501568]
[1748425279081,5.77133952,173.27,173.24,16.48501568]
[1748425281277,36.68470401,173.27,173.23,16.48501568]
[1748425282210,36.68470401,173.27,173.26,16.48501568]
[1748425282211,5.77133952,173.27,173.26,16.48501568]
[1748425282500,5.76967459,173.32,173.26,16.48501568]
[1748425282701,5.76967459,173.32,173.31,16.48501568]
[1748425282880,5.76967459,173.32,173.3,16.48501568]
[1748425283376,14.42418647,173.32,173.3,16.48501568]
[1748425289993,5.76934171,173.33,173.31,16.48501568]
[1748425290194,5.76934171,173.33,173.32,16.48501568]
[1748425291192,20.19100344,173.35,173.32,16.48501568]
[1748425292005,20.19100344,173.35,173.33,16.48501568]
[1748425292691,20.19100344,173.35,173.32,16.48501568]
[1748425293391,20.19100344,173.35,173.33,16.48501568]
[1748425294390,20.19100344,173.35,173.32,16.48501568]
[1748425294807,18.61959674,173.34,173.29,16.48501568]
[1748425295006,16.48501568,173.34,173.29,16.48501568]
[1748425295399,36.67601912,173.35,173.3,16.48501568]
[1748425295748,65.51939956,173.35,173.3,16.48501568]
[1748425297115,65.51939956,173.35,173.31,16.48501568]
[1748425298692,20.19100344,173.35,173.34,16.48501568]
[1748425299205,5.76867608,173.35,173.34,16.48501568]
[1748425304506,14.41925253,173.38,173.34,16.48501568]
[1748425304823,16.55324512,173.38,173.35,16.48501568]
[1748425305200,16.55324512,173.38,173.34,16.48501568]
[1748425305408,33.0382608,173.38,173.34,16.48501568]
[1748425305632,30.90426821,173.38,173.34,16.48501568]
[1748425305820,14.41925253,173.38,173.34,16.48501568]
[1748425305997,16.55340856,173.38,173.34,16.48501568]
[1748425306699,22.32108649,173.38,173.35,16.48501568]
[1748425306900,20.18693046,173.38,173.35,16.48501568]
[1748425307444,5.76767793,173.38,173.37,16.48501568]
[1748425308909,14.41736019,173.41,173.37,16.48501568]
[1748425309109,14.41736019,173.41,173.39,16.48501568]
[1748425310496,30.90237587,173.41,173.34,88.1]
[1748425310788,30.90237587,173.41,173.36,16.48501568]
[1748425311025,16.48501568,173.4,173.36,16.48501568]
[1748425313506,5.76734529,173.39,173.36,16.48501568]
[1748425316043,5.7660151,173.43,173.38,16.48501568]
[1748425316250,5.7660151,173.43,173.42,16.48501568]
[1748425316551,5.76269232,173.53,173.47,1.5483]
[1748425316709,5.76036866,173.6,173.53,6.0923]
[1748425316913,5.76036866,173.6,173.57,16.48501568]
[1748425317111,22.24538434,173.6,173.55,16.48501568]
[1748425317314,16.48501568,173.58,173.53,22.57731568]
[1748425317540,16.48501568,173.57,173.52,16.48501568]
[1748425317752,5.76169624,173.56,173.53,16.48501568]
[1748425318834,20.16593684,173.56,173.49,32.0123]
[1748425319139,20.16593684,173.56,173.52,16.48501568]
[1748425319942,36.65095252,173.56,173.51,16.48501568]
[1748425320160,16.48501568,173.55,173.5,16.48501568]
[1748425320355,16.48501568,173.53,173.47,1.5483]
[1748425320518,16.48501568,173.5,173.46,16.48501568]
[1748425320719,9.26,173.52,173.43,16.48501568]
[1748425321050,16.48501568,173.49,173.44,16.48501568]
[1748425321218,16.48501568,173.47,173.42,18.08041568]
[1748425321825,20.17756254,173.46,173.43,16.48501568]
[1748425322014,20.17756254,173.46,173.42,18.08041568]
[1748425322220,36.66257822,173.46,173.42,1.5954]
[1748425322824,74.74766757,173.46,173.37,42.9119]
[1748425323022,16.48501568,173.45,173.41,16.48501568]
[1748425323226,16.48501568,173.45,173.4,16.48501568]
[1748425323945,49.00830257,173.44,173.4,24.357373]
[1748425325316,73.36567557,173.44,173.39,24.357373]
[1748425325522,24.357373,173.42,173.37,32.009273]
[1748425325957,24.357373,173.43,173.38,24.357373]
[1748425327419,20.18221657,173.42,173.38,24.357373]
[1748425328941,20.18221657,173.42,173.39,24.357373]
[1748425329332,20.18221657,173.42,173.38,24.357373]
[1748425329825,20.18221657,173.42,173.37,7.6519]
[1748425329826,38.77324198,173.42,173.37,7.6519]
[1748425330162,24.357373,173.41,173.37,32.009273]
[1748425331042,38.77324198,173.42,173.37,32.009273]
[1748425331459,44.53958957,173.42,173.37,32.009273]
[1748425331839,20.18221657,173.42,173.37,32.009273]
[1748425332033,44.53958957,173.42,173.38,24.357373]
[1748425332354,20.18221657,173.42,173.39,24.357373]
[1748425336662,20.18221657,173.42,173.38,24.357373]
[1748425336848,44.53958957,173.42,173.38,24.357373]
[1748425337372,20.18221657,173.42,173.39,24.357373]
[1748425337738,20.18221657,173.42,173.37,7.6519]
[1748425337739,5.76568265,173.44,173.41,24.357373]
[1748425337954,5.76568265,173.44,173.43,24.357373]
[1748425338866,5.76501787,173.46,173.43,24.357373]
[1748425339077,5.76501787,173.46,173.44,24.357373]
[1748425340048,5.76501787,173.46,173.43,24.357373]
[1748425340234,5.76501787,173.46,173.45,24.357373]
[1748425340639,20.17552949,173.48,173.45,24.357373]
[1748425343948,20.17552949,173.48,173.45,16.43134096]
[1748425344876,14.41117626,173.48,173.46,16.43134096]
[1748425347072,14.41117626,173.48,173.45,16.43134096]
[1748425348679,28.81544345,173.52,173.45,16.43134096]
[1748425348680,28.80848121,173.56,173.47,35.08098982]
[1748425348979,28.80848121,173.56,173.48,16.43134096]
[1748425348980,16.43134096,173.53,173.48,16.43134096]
[1748425349355,16.43134096,173.52,173.48,16.43134096]
[1748425349753,16.43134096,173.52,173.47,16.43134096]
[1748425349962,16.43134096,173.5,173.46,6.2796]
[1748425350170,5.76402098,173.49,173.46,16.43134096]
[1748425351865,20.1731069,173.5,173.46,16.43134096]
[1748425352853,20.1731069,173.5,173.47,16.43134096]
[1748425354176,5.76368876,173.5,173.48,16.43134096]
[1748425355810,5.76302443,173.52,173.48,16.43134096]
[1748425357581,20.17058551,173.52,173.48,16.43134096]
[1748425357780,36.60192647,173.52,173.48,16.43134096]
[1748425360569,20.17058551,173.52,173.49,16.43134096]
[1748425367196,20.17058551,173.52,173.45,106.74964886]
[1748425367399,20.17058551,173.52,173.49,16.43134096]
[1748425369267,5.76302443,173.52,173.51,16.43134096]
[1748425369770,5.76302443,173.52,173.51,18.08484096]
[1748425370573,5.76169624,173.56,173.51,18.08484096]
[1748425370776,5.76169624,173.56,173.54,16.43134096]
[1748425372212,5.76169624,173.56,173.53,16.43134096]
[1748425372411,5.76169624,173.56,173.55,16.43134096]
[1748425372584,14.40323711,173.58,173.55,16.43134096]
[1748425372585,20.16426948,173.58,173.55,16.43134096]
[1748425372907,20.16426948,173.58,173.56,16.43134096]
[1748425373087,20.16426948,173.58,173.52,16.43134096]
[1748425373284,20.16426948,173.58,173.56,16.43134096]
[1748425374307,20.16426948,173.58,173.51,20.30314886]
[1748425374501,20.16426948,173.58,173.56,16.43134096]
[1748425374714,14.40323711,173.58,173.56,16.43134096]
[1748425376819,13.90323711,173.58,173.56,16.43134096]
[1748425377392,13.90323711,173.58,173.55,16.43134096]
[1748425378906,16.43134096,173.57,173.53,16.43134096]
[1748425379487,30.33457807,173.58,173.54,16.43134096]
[1748425379997,36.09561044,173.58,173.54,16.43134096]
[1748425380715,71.49561044,173.58,173.54,16.43134096]
[1748425381395,16.43134096,173.55,173.51,89.7535]
[1748425381597,16.43134096,173.54,173.51,1.6535]
[1748425381797,16.43134096,173.55,173.51,18.08484096]
[1748425382108,20.16826091,173.54,173.51,18.08484096]
[1748425383612,5.76236026,173.54,173.53,16.43134096]
[1748425384014,5.76169624,173.56,173.53,16.43134096]
[1748425384325,5.76169624,173.56,173.55,16.43134096]
[1748425386243,5.76169624,173.56,173.54,16.43134096]
[1748425386554,20.16593684,173.56,173.51,108.40314886]
[1748425386749,16.43134096,173.55,173.51,1.6535]
[1748425387253,16.43134096,173.55,173.51,18.08484096]
[1748425387550,36.5972778,173.56,173.51,18.08484096]
[1748425389649,30.83558156,173.56,173.51,18.08484096]
[1748425391156,49.8042406,173.56,173.53,16.43134096]
[1748425391360,14.4042406,173.56,173.53,16.43134096]
[1748425391745,20.16593684,173.56,173.53,16.43134096]
[1748425393635,5.76169624,173.56,173.55,16.43134096]
[1748425394559,5.76169624,173.56,173.54,16.43134096]
[1748425394858,36.5972778,173.56,173.52,26.0]
[1748425395158,36.5972778,173.56,173.52,42.43134096]
[1748425395365,20.16593684,173.56,173.52,42.43134096]
[1748425395540,20.16593684,173.56,173.53,16.43134096]
[1748425397339,14.4042406,173.56,173.52,26.0]
[1748425397539,14.4042406,173.56,173.53,16.43134096]
[1748425398858,20.16593684,173.56,173.53,16.43134096]
[1748425399741,36.5972778,173.56,173.52,26.0]
[1748425399940,20.16593684,173.56,173.52,42.43134096]
[1748425400136,20.16593684,173.56,173.54,16.43134096]
[1748425401038,14.4042406,173.56,173.54,16.43134096]
[1748425401936,5.76136429,173.57,173.54,16.43134096]
[1748425403952,20.16477501,173.57,173.53,16.43134096]
[1748425404265,20.16477501,173.57,173.52,26.0]
[1748425404479,20.16477501,173.57,173.53,16.43134096]
[1748425405552,20.16477501,173.57,173.54,16.43134096]
[1748425407348,20.16477501,173.57,173.53,16.43134096]
[1748425408662,20.16477501,173.57,173.54,16.43134096]
[1748425410378,20.16477501,173.57,173.52,26.0]